bitfinex-derivatives/quotes_ETHF0:USTF0_20250501
["timestamp","ask_amount","ask_price","bid_price","bid_amount"]
[1746093460205,7.01620275,1821.0,1820.9,1.6026]
[1746093460404,7.01614588,1821.0,1820.9,42.4026]
[1746093460605,7.01614588,1821.0,1820.9,1.6026]
[1746093462403,5.33014588,1821.0,1820.9,1.6026]
[1746093463108,3.66536245,1821.7,1821.3,2.74473]
[1746093463297,4.76311245,1821.7,1821.6,8.0777518]
[1746093463497,1.09782,1821.6,1821.4,8.79377]
[1746093463701,1.09782,1821.6,1821.5,9.8183518]
[1746093463904,2.76702,1821.6,1821.5,1.7406]
[1746093464208,13.89275434,1821.6,1821.5,1.7406]
[1746093464507,13.89275434,1821.6,1821.5,2.83843]
[1746093465398,13.89275434,1821.6,1821.5,1.7406]
[1746093465809,1.09783,1821.5,1821.4,40.8]
[1746093466004,2.19213,1821.5,1821.4,48.8777518]
[1746093466314,7.62213,1821.5,1821.4,9.6893518]
[1746093466500,5.98013,1821.5,1821.4,10.7872418]
[1746093466708,4.88583,1821.5,1821.4,10.7872418]
[1746093467912,4.88583,1821.5,1821.4,1.6116]
[1746093468213,4.88583,1821.5,1821.4,10.7872418]
[1746093469620,4.88583,1821.5,1821.4,9.6893518]
[1746093469816,1.09789,1821.4,1821.3,40.8]
[1746093470004,1.09789,1821.4,1821.3,50.5983518]
[1746093470314,4.88589,1821.4,1821.3,10.8963018]
[1746093470806,4.88589,1821.4,1821.3,51.6963018]
[1746093471108,4.88589,1821.4,1821.3,42.5206]
[1746093471310,4.88589,1821.4,1821.3,1.7206]
[1746093471509,1.09801,1821.2,1821.1,3.2078]
[1746093471905,1.09801,1821.2,1821.1,13.0115518]
[1746093472108,4.88601,1821.2,1821.1,13.0115518]
[1746093472415,4.88601,1821.2,1821.1,14.1096218]
[1746093472609,3.788,1821.2,1821.1,14.1096218]
[1746093473316,1.09801,1821.2,1821.1,14.1096218]
[1746093474018,1.09801,1821.2,1821.1,13.0115518]
[1746093475009,1.52935052,1821.2,1821.1,13.0115518]
[1746093475617,1.52935052,1821.2,1821.1,14.1096218]
[1746093476214,1.52937628,1821.2,1821.1,14.1096218]
[1746093477417,1.52937628,1821.2,1821.1,13.0115518]
[1746093477616,1.52937628,1821.2,1821.1,1.726]
[1746093477813,3.18807628,1821.2,1821.1,1.726]
[1746093478115,1.09807,1821.1,1821.0,40.8]
[1746093478316,3.18819253,1821.1,1821.0,50.5932518]
[1746093478505,1.09813,1821.0,1820.9,3.2078]
[1746093478709,1.52955253,1821.0,1820.9,4.9233]
[1746093478910,2.67985253,1821.0,1820.9,53.8010518]
[1746093479216,5.31755253,1821.0,1820.9,54.8992418]
[1746093481214,1.52955253,1821.0,1820.9,54.8992418]
[1746093481814,1.51435488,1821.0,1820.9,54.8992418]
[1746093482119,5.30235544,1821.0,1820.9,53.8010518]
[1746093482419,5.30234129,1821.0,1820.9,53.8010518]
[1746093482617,5.3023482,1821.0,1820.9,53.8010518]
[1746093482813,5.30234929,1821.0,1820.9,8.0777518]
[1746093483114,1.09825,1820.8,1820.7,3.2078]
[1746093483315,1.51448119,1820.8,1820.7,45.6644]
[1746093483619,1.51448601,1820.8,1820.7,45.6644]
[1746093484117,5.30248855,1820.8,1820.7,45.6644]
[1746093484318,4.88625,1820.8,1820.7,45.6644]
[1746093484523,5.30246146,1820.8,1820.7,45.6644]
[1746093484721,5.30240121,1820.8,1820.7,45.6644]
[1746093484916,4.88625,1820.8,1820.7,45.6644]
[1746093485218,2.84255,1820.8,1820.7,45.6644]
[1746093485416,3.25867583,1820.8,1820.7,42.4566]
[1746093485614,3.25871505,1820.8,1820.7,42.4566]
[1746093485816,2.84255,1820.8,1820.7,42.4566]
[1746093486111,3.25873739,1820.8,1820.7,1.6566]
[1746093486320,1.09837,1820.6,1820.5,6.59233]
[1746093486523,1.51451301,1820.6,1820.5,6.59233]
[1746093486817,1.51451301,1820.6,1820.5,11.2855518]
[1746093487023,1.51451301,1820.6,1820.2,70.51243]
[1746093487024,1.09849,1820.4,1820.3,6.62804]
[1746093487224,1.51465789,1820.4,1820.3,6.62804]
[1746093487419,1.51462741,1820.4,1820.3,55.5057918]
[1746093487619,1.51439206,1820.4,1820.3,57.1835918]
[1746093487820,0.41591749,1820.4,1820.3,57.1835918]
[1746093488219,1.51440749,1820.4,1820.3,57.1835918]
[1746093488726,1.51439238,1820.4,1820.3,57.1835918]
[1746093489123,0.41590298,1820.4,1820.3,57.1835918]
[1746093489321,1.51439298,1820.4,1820.3,57.1835918]
[1746093489524,0.41590298,1820.4,1820.3,57.1835918]
[1746093489727,1.09849,1820.5,1820.4,1.09849]
[1746093489924,1.51418437,1820.5,1820.4,10.9030418]
[1746093490124,5.30218437,1820.5,1820.4,10.9030418]
[1746093490525,4.88649,1820.5,1820.4,10.9030418]
[1746093490725,5.3020297,1820.5,1820.4,10.9030418]
[1746093490921,4.88649,1820.5,1820.4,10.9030418]
[1746093491224,4.88649,1820.5,1820.3,45.10633]
[1746093491225,1.09849,1820.4,1820.3,45.10633]
[1746093491430,1.51402758,1820.4,1820.3,54.9109018]
[1746093491627,1.51402914,1820.4,1820.3,54.9109018]
[1746093491829,1.51402914,1820.4,1820.3,53.8123518]
[1746093492018,1.51403445,1820.4,1820.3,53.8123518]
[1746093492226,5.30203452,1820.4,1820.3,53.8123518]
[1746093492421,5.30200782,1820.4,1820.3,4.9346]
[1746093492630,6.92751055,1820.4,1820.3,4.9346]
[1746093492829,6.92751055,1820.4,1820.3,45.7346]
[1746093493435,6.92729332,1820.4,1820.3,45.7346]
[1746093493728,6.92737018,1820.4,1820.3,45.7346]
[1746093493925,6.92737028,1820.4,1820.3,4.9346]
[1746093494229,6.9273702,1820.4,1820.3,4.9346]
[1746093494426,6.9273703,1820.4,1820.3,4.9346]
[1746093494628,6.92737037,1820.4,1820.3,4.9346]
[1746093494933,6.51199,1820.4,1820.3,3.2078]
[1746093495125,1.09867,1820.1,1820.0,5.9554]
[1746093495431,1.51395206,1820.1,1820.0,5.9554]
[1746093495629,1.51395206,1820.1,1820.0,54.8331518]
[1746093495832,1.51395206,1820.1,1820.0,53.7344518]
[1746093496133,1.51395206,1820.1,1820.0,14.0331818]
[1746093496728,1.51371457,1820.1,1820.0,14.0331818]
[1746093497031,1.09864,1820.2,1820.1,1.09867]
[1746093497234,1.51366956,1820.2,1820.1,10.7899218]
[1746093497532,1.51366644,1820.2,1820.1,10.7899218]
[1746093498035,1.5135567,1820.2,1820.1,10.7899218]
[1746093498331,1.51355693,1820.2,1820.1,10.7899218]
[1746093499019,1.51351383,1820.2,1820.1,10.7899218]
[1746093499226,1.5135147,1820.2,1820.1,10.7899218]
[1746093499527,1.51360205,1820.2,1820.1,9.6912518]
[1746093499728,1.51360302,1820.2,1820.1,10.7899218]
[1746093500027,1.09864,1820.2,1820.1,9.6912518]
[1746093500425,1.09864,1820.2,1820.1,10.7899218]
[1746093500826,1.51356339,1820.2,1820.1,10.7899218]
[1746093501730,1.09864,1820.2,1820.1,10.7899218]
[1746093501926,1.51354719,1820.2,1820.1,9.6912518]
[1746093502125,1.51354719,1820.2,1820.1,10.7899218]
[1746093502126,1.5135474,1820.2,1820.1,10.7899218]
[1746093502328,1.51355868,1820.2,1820.1,1.6135]
[1746093502529,1.51356975,1820.2,1820.1,1.6135]
[1746093502732,1.513572,1820.2,1820.1,2.71217]
[1746093502932,1.09864,1820.2,1820.1,2.71217]
[1746093503134,1.5135081,1820.2,1820.1,2.71217]
[1746093503432,1.09864,1820.2,1820.1,2.71217]
[1746093503737,1.51352381,1820.2,1820.1,1.6135]
[1746093503934,4.29072319,1820.2,1820.1,1.6135]
[1746093504128,3.87584,1820.2,1820.1,1.6135]
[1746093504328,4.29079114,1820.2,1820.1,2.71217]
[1746093504528,4.29076742,1820.2,1820.1,2.71217]
[1746093504733,2.69936742,1820.2,1820.1,2.71217]
[1746093505131,2.69936742,1820.2,1820.1,10.7899218]
[1746093505333,2.69941119,1820.2,1820.1,10.7899218]
[1746093505528,2.69939733,1820.2,1820.1,10.7899218]
[1746093505836,2.69940645,1820.2,1820.1,1.6135]
[1746093506034,2.69940747,1820.2,1820.1,1.6135]
[1746093506236,4.27840596,1820.2,1820.1,1.6135]
[1746093506837,1.09867,1820.1,1820.0,4.30649]
[1746093507035,3.09263596,1820.1,1820.0,14.0891418]
[1746093507331,2.67767,1820.1,1820.0,14.0891418]
[1746093507636,3.0928673,1820.1,1820.0,12.9904518]
[1746093507832,2.67767,1820.1,1820.0,4.9127]
[1746093508037,3.09287785,1820.1,1820.0,3.2078]
[1746093508231,6.88087785,1820.1,1820.0,3.2078]
[1746093508836,6.88099712,1820.1,1820.0,3.2078]
[1746093509132,1.09879,1819.9,1819.8,44.0078]
[1746093509433,1.5141086,1819.9,1819.8,44.0078]
[1746093509634,1.5141086,1819.9,1819.3,6.25982383]
[1746093509635,0.4153186,1819.9,1819.3,3.2078]
[1746093509826,0.4153186,1819.9,1819.0,7.25764239]
[1746093509827,1.09891,1819.7,1819.6,8.0777518]
[1746093510031,1.09897,1819.6,1819.5,1.5751]
[1746093510230,2.31237,1819.6,1819.5,1.5751]
[1746093510438,2.31237,1819.6,1819.5,9.6528518]
[1746093511141,2.72774848,1819.6,1819.5,9.6528518]
[1746093512127,2.72798126,1819.6,1819.5,9.6528518]
[1746093512333,2.72798108,1819.6,1819.5,9.6528518]
[1746093512534,2.72798128,1819.6,1819.5,9.6528518]
[1746093512729,2.31237,1819.6,1819.5,9.6528518]
[1746093512935,3.98804,1820.0,1819.5,9.6528518]
[1746093513239,1.51446549,1819.9,1819.8,8.0777518]
[1746093513641,1.09891,1819.7,1819.6,1.09893]
[1746093513839,1.51458549,1819.7,1819.6,1.09893]
[1746093514045,0.41567549,1819.7,1819.6,9.1766818]
[1746093514245,1.51458549,1819.7,1819.6,9.1766818]
[1746093514437,1.09888,1819.8,1819.7,1.09891]
[1746093514744,1.51468793,1819.8,1819.7,9.2680518]
[1746093514949,1.51468308,1819.8,1819.7,9.2680518]
[1746093515241,1.51467052,1819.8,1819.7,9.2680518]
[1746093516135,1.51468289,1819.8,1819.7,9.2680518]
[1746093517230,1.51465545,1819.8,1819.7,9.2680518]
[1746093517438,1.09888,1819.8,1819.7,9.2680518]
[1746093517637,1.51467608,1819.8,1819.7,9.2680518]
[1746093517833,1.09888,1819.8,1819.7,9.2680518]
[1746093518234,1.51467934,1819.8,1819.7,9.2680518]
[1746093518435,1.51465668,1819.8,1819.7,9.2680518]
[1746093519141,1.09888,1819.8,1819.7,9.2680518]
[1746093519349,1.51473088,1819.8,1819.7,9.2680518]
[1746093519743,1.09897,1819.6,1819.5,4.71099]
[1746093519944,1.51482088,1819.6,1819.5,4.71099]
[1746093520139,1.51482088,1819.6,1819.5,12.7887418]
[1746093520546,1.51490228,1819.6,1819.5,12.7887418]
[1746093520741,1.5149023,1819.6,1819.5,12.7887418]
[1746093521045,1.51490003,1819.6,1819.5,9.1767418]
[1746093522049,1.51490356,1819.6,1819.5,9.1767418]
[1746093522253,1.51490642,1819.6,1819.5,9.1767418]
[1746093522453,1.5149063,1819.6,1819.5,9.1767418]
[1746093522653,1.51490629,1819.6,1819.5,9.1767418]
[1746093523149,1.51490629,1819.6,1819.5,8.0777518]
[1746093523847,1.51491851,1819.6,1819.5,8.0777518]
[1746093524353,3.19871851,1819.6,1819.5,8.0777518]
[1746093524852,1.09903,1819.5,1819.4,46.30116]
[1746093525051,1.51497851,1819.5,1819.4,46.30116]
[1746093525254,1.51497851,1819.5,1819.4,54.3789118]
[1746093525752,1.51499083,1819.5,1819.4,54.3789118]
[1746093526141,1.51032739,1819.5,1819.4,54.3789118]
[1746093526344,1.09436393,1819.5,1819.4,54.3789118]
[1746093526545,1.51033747,1819.5,1819.4,54.3789118]
[1746093527557,1.09436393,1819.5,1819.4,54.3789118]
[1746093527757,1.51039471,1819.5,1819.4,54.3789118]
[1746093527954,1.51039471,1819.5,1819.4,50.0720518]
[1746093528360,1.51039471,1819.5,1819.4,51.7358518]
[1746093529153,1.51039471,1819.5,1819.4,1.6638]
[1746093529354,1.51049848,1819.5,1819.4,1.6638]
[1746093529858,1.51049848,1819.5,1819.4,42.4638]
[1746093530052,1.51049848,1819.5,1819.4,43.6471]
[1746093531148,1.51052328,1819.5,1819.4,43.6471]
[1746093531359,1.51052328,1819.5,1819.4,44.74619]
[1746093531557,1.51052328,1819.5,1819.4,43.6471]
[1746093533259,3.10452328,1819.5,1819.4,42.4638]
[1746093533454,1.09909,1819.4,1819.3,1.2421]
[1746093533659,5.47494935,1819.4,1819.3,2.9203]
[1746093533861,1.51524935,1819.4,1819.3,12.0972018]
[1746093534157,1.51524935,1819.4,1819.3,14.7860518]
[1746093535763,1.51524935,1819.4,1819.3,3.788]
[1746093536154,1.09921,1819.2,1819.1,1.6761]
[1746093536354,1.51536935,1819.2,1819.1,1.6761]
[1746093536558,1.51578693,1819.2,1819.1,1.6761]
[1746093536855,2.81601,1819.2,1819.1,1.6761]
[1746093537257,2.81601,1819.2,1819.0,46.32603]
[1746093537258,2.13339879,1819.2,1818.8,3.2078]
[1746093537463,1.09938,1819.0,1818.9,1.09934]
[1746093537657,1.51597879,1819.0,1818.9,1.09934]
[1746093537862,1.51597879,1819.0,1818.9,49.9770918]
[1746093538161,1.51597879,1819.0,1818.9,53.7650918]
[1746093538363,0.41659879,1819.0,1818.9,53.7650918]
[1746093538563,0.41659879,1819.0,1818.9,55.4342918]
[1746093538764,1.09931,1819.1,1819.0,1.09934]
[1746093538965,1.51573215,1819.1,1819.0,9.7469518]
[1746093539164,1.51573215,1819.1,1819.0,5.4572]
[1746093539367,1.51573215,1819.1,1819.0,3.788]
[1746093539561,1.51573215,1819.1,1819.0,5.4572]
[1746093541266,9.72353215,1819.1,1819.0,3.788]
[1746093541862,13.33753215,1819.1,1819.0,2.5961]
[1746093542167,13.43445137,1819.1,1819.0,2.5961]
[1746093542367,13.43445085,1819.1,1819.0,1.49538]
[1746093543066,13.43445591,1819.1,1819.0,1.49538]
[1746093543268,13.43445591,1819.1,1819.0,0.36216]
[1746093544067,13.33753215,1819.1,1819.0,0.36216]
[1746093544473,13.4344504,1819.1,1819.0,0.36216]
[1746093544976,8.33753215,1819.1,1819.0,0.36216]
[1746093545675,13.33753215,1819.1,1819.0,0.36216]
[1746093546373,8.33666195,1819.1,1819.0,0.36216]
[1746093546577,1.09958,1818.6,1818.5,40.8]
[1746093546772,1.51513195,1818.6,1818.5,41.89964]
[1746093546973,1.09943,1818.9,1818.8,1.09942]
[1746093547274,1.51489707,1818.9,1818.8,12.9651718]
[1746093547671,1.51489707,1818.9,1818.8,14.2380718]
[1746093547970,0.41546707,1818.9,1818.8,15.9124718]
[1746093548175,4.30718,1819.0,1818.9,1.0994]
[1746093548476,4.72266618,1819.0,1818.9,10.8515518]
[1746093548771,1.51486618,1819.0,1818.9,10.8515518]
[1746093548976,1.51486618,1819.0,1818.9,9.7521518]
[1746093549172,1.51486618,1819.0,1818.9,13.5401518]
[1746093549673,1.51486618,1819.0,1818.9,14.6395518]
[1746093549874,1.51486618,1819.0,1818.9,13.5401518]
[1746093550076,1.51500514,1819.0,1818.9,13.5401518]
[1746093550268,0.41562514,1819.0,1818.9,14.6395518]
[1746093550463,1.51496514,1819.0,1818.9,14.6395518]
[1746093551475,0.41562514,1819.0,1818.9,14.6395518]
[1746093551675,0.41562514,1819.0,1818.9,17.8473518]
[1746093551875,1.09933,1819.1,1819.0,1.09934]
[1746093552076,1.5150101,1819.1,1819.0,2.8671]
[1746093552271,1.5150101,1819.1,1819.0,10.9448518]
[1746093553281,1.5150101,1819.1,1819.0,14.7328518]
[1746093553879,1.51520721,1819.1,1819.0,14.7328518]
[1746093554780,1.51520721,1819.1,1819.0,15.8321918]
[1746093555273,1.51520721,1819.1,1819.0,10.9448518]
[1746093555575,0.41587721,1819.1,1819.0,12.0441918]
[1746093555771,1.51514721,1819.1,1819.0,12.0441918]
[1746093556078,1.51514721,1819.1,1819.0,10.9448518]
[1746093556376,1.51514721,1819.1,1819.0,15.8321918]
[1746093556578,1.51514721,1819.1,1819.0,14.7328518]
[1746093557180,1.51514721,1819.1,1819.0,10.9448518]
[1746093557380,2.69974721,1819.1,1819.0,10.9448518]
[1746093558585,2.69974721,1819.1,1819.0,14.7328518]
[1746093559671,2.70019285,1819.1,1819.0,14.7328518]
[1746093560582,2.70019285,1819.1,1819.0,15.8321918]
[1746093561282,2.70019285,1819.1,1819.0,14.7328518]
[1746093561476,2.70037106,1819.1,1819.0,13.5209518]
[1746093561876,2.70037106,1819.1,1819.0,14.6202918]
[1746093562588,2.70037106,1819.1,1819.0,13.5209518]
[1746093563489,2.70037106,1819.1,1819.0,5.4432]
[1746093563883,3.84787106,1819.1,1819.0,5.4432]
[1746093566192,1.51577106,1819.1,1819.0,13.5209518]
[1746093566492,1.51624345,1819.1,1819.0,14.6202918]
[1746093566692,1.51624345,1819.1,1819.0,13.5209518]
[1746093567093,1.51624345,1819.1,1819.0,9.7329518]
[1746093567292,1.51625947,1819.1,1819.0,9.7329518]
[1746093568287,1.51625947,1819.1,1819.0,13.5209518]
[1746093568793,1.51625947,1819.1,1819.0,14.6202918]
[1746093569093,1.51625947,1819.1,1819.0,13.5209518]
[1746093569280,1.51625947,1819.1,1819.0,14.6202918]
[1746093570491,1.51625947,1819.1,1819.0,13.5209518]
[1746093571192,1.51622276,1819.1,1819.0,13.5209518]
[1746093571890,1.51622276,1819.1,1819.0,11.8657518]
[1746093572094,1.51622276,1819.1,1819.0,3.788]
[1746093572294,1.51622276,1819.1,1819.0,5.4693]
[1746093572491,1.51622276,1819.1,1819.0,13.5470518]
[1746093572695,1.51622276,1819.1,1819.0,14.6463918]
[1746093573698,1.51622276,1819.1,1819.0,5.4693]
[1746093574806,1.51622276,1819.1,1819.0,3.788]
[1746093574989,1.51656679,1819.1,1819.0,3.788]
[1746093576895,5.164032,1819.1,1819.0,3.788]
[1746093577286,6.795232,1819.1,1819.0,3.788]
[1746093577898,10.405232,1819.1,1819.0,3.788]
[1746093578197,13.613032,1819.1,1819.0,3.788]
[1746093578797,13.6129,1819.1,1819.0,3.788]
[1746093580600,23.54780666,1819.1,1819.0,3.788]
[1746093580798,23.54772501,1819.1,1819.0,3.788]
[1746093582402,23.54772501,1819.1,1819.0,2.6531]
[1746093582591,23.64464522,1819.1,1819.0,2.6531]
[1746093582787,28.64464522,1819.1,1819.0,2.6531]
[1746093583802,28.64464676,1819.1,1819.0,2.6531]
[1746093584500,28.64455542,1819.1,1819.0,1.30409]
[1746093584800,28.64455542,1819.1,1819.0,0.06262]
[1746093585101,21.30682108,1819.1,1819.0,1e-05]
[1746093585597,21.30682188,1819.1,1819.0,1e-05]
[1746093586393,21.30673651,1819.1,1819.0,1e-05]
[1746093587901,21.30666292,1819.1,1819.0,1e-05]
[1746093588701,21.30658631,1819.1,1819.0,1e-05]
[1746093589004,21.30659188,1819.1,1819.0,1e-05]
[1746093589501,21.30659248,1819.1,1819.0,1e-05]
[1746093590806,21.30646385,1819.1,1819.0,1e-05]
[1746093591001,21.30646291,1819.1,1819.0,1e-05]
[1746093592601,1.09952,1818.7,1818.6,1.7083]
[1746093592801,8.33405549,1818.7,1818.6,1.7083]
[1746093593003,1.09964,1818.5,1818.4,2.8485]
[1746093593309,4.72417549,1818.5,1818.4,1.5852]
[1746093593498,4.72417549,1818.5,1818.4,9.6629518]
[1746093594005,1.09976,1818.3,1818.2,1.1458]
[1746093594192,2.7732,1818.4,1818.3,8.0777518]
[1746093594397,1.09988,1818.1,1818.0,1.5852]
[1746093594603,1.51657062,1818.1,1818.0,1.5852]
[1746093594803,1.51657062,1818.1,1818.0,15.7628918]
[1746093595202,1.51657062,1818.1,1818.0,22.7586918]
[1746093595804,1.51657062,1818.1,1818.0,19.5508918]
[1746093597205,0.41669062,1818.1,1818.0,19.5508918]
[1746093597408,1.51657062,1818.1,1818.0,19.5508918]
[1746093597906,1.51657062,1818.1,1818.0,18.4509518]
[1746093598095,1.09988,1818.1,1818.0,18.4509518]
[1746093598295,0.41617707,1818.1,1818.0,19.5508918]
[1746093598601,1.51605707,1818.1,1818.0,22.7586918]
[1746093599206,0.41617707,1818.1,1818.0,22.7586918]
[1746093599402,1.51605707,1818.1,1818.0,22.7586918]
[1746093599705,0.41617707,1818.1,1818.0,22.7586918]
[1746093601103,4.76366423,1818.4,1818.3,1.09976]
[1746093601305,5.17975994,1818.4,1818.3,12.3853118]
[1746093601510,4.08005994,1818.4,1818.3,17.3853118]
[1746093601810,5.17975994,1818.4,1818.3,9.1775118]
[1746093602009,5.17975994,1818.4,1818.3,10.9246118]
[1746093602310,5.17975994,1818.4,1818.3,13.6128518]
[1746093602614,5.17975994,1818.4,1818.3,14.7126118]
[1746093603102,5.17975994,1818.4,1818.3,13.6128518]
[1746093603306,5.17975994,1818.4,1818.3,14.7126118]
[1746093603505,4.08005994,1818.4,1818.3,14.7126118]
[1746093603714,4.08005994,1818.4,1818.3,19.7126118]
[1746093604215,3.66392423,1818.4,1818.3,19.7126118]
[1746093604401,3.66392423,1818.4,1818.3,23.3226118]
[1746093604601,1.75722423,1818.4,1818.3,23.3226118]
[1746093605505,5.49588634,1818.7,1818.6,1.09958]
[1746093605706,5.9122919,1818.7,1818.6,12.3851318]
[1746093605908,5.9122919,1818.7,1818.6,17.3851318]
[1746093606313,5.9122919,1818.7,1818.6,18.9911318]
[1746093606811,5.49588634,1818.7,1818.6,22.6011318]
[1746093607115,3.49588634,1818.7,1818.6,63.4011318]
[1746093607506,9.16922218,1819.0,1818.9,1.0994]
[1746093607816,9.16922218,1819.0,1818.9,5.04957406]
[1746093608011,9.58531682,1819.0,1818.9,9.10457406]
[1746093608313,9.16922218,1819.0,1818.9,53.69257406]
[1746093608516,9.58532385,1819.0,1818.9,53.69257406]
[1746093608706,9.58531026,1819.0,1818.9,53.69257406]
[1746093609012,1.09919,1819.3,1819.1,1.09927]
[1746093609213,1.09919,1819.3,1819.2,3.52847406]
[1746093609414,1.51509441,1819.3,1819.2,3.52847406]
[1746093610212,1.51509441,1819.3,1819.2,5.3774]
[1746093613217,1.51473557,1819.3,1819.2,5.3774]
[1746093613414,4.30693,1819.4,1819.2,7.21898406]
[1746093613620,4.30693,1819.4,1819.3,3.55147406]
[1746093613821,4.72240045,1819.4,1819.3,3.55147406]
[1746093614022,4.72240045,1819.4,1819.3,2.8091]
[1746093614222,4.72240045,1819.4,1819.3,6.5971]
[1746093614424,4.72227438,1819.4,1819.3,6.5971]
[1746093614615,4.72227453,1819.4,1819.3,6.5971]
[1746093614921,4.30693,1819.4,1819.3,6.5971]
[1746093615120,4.72227343,1819.4,1819.3,2.8091]
[1746093615323,4.72222534,1819.4,1819.3,2.8091]
[1746093615514,3.62309534,1819.4,1819.3,4.65062406]
[1746093616019,0.41519005,1819.4,1819.3,4.65062406]
[1746093616215,1.09909,1819.4,1819.3,6.5971]
[1746093616629,0.41515004,1819.4,1819.3,8.43862406]
[1746093616816,2.29537,1819.5,1819.3,7.33947406]
[1746093617011,2.29537,1819.5,1819.4,0.74237406]
[1746093617215,2.71050971,1819.5,1819.4,0.74237406]
[1746093617411,1.1963,1819.5,1819.4,0.74237406]
[1746093617617,2.29533,1819.5,1819.4,0.74237406]
[1746093617817,2.71040634,1819.5,1819.4,0.74237406]
[1746093618322,1.51400779,1819.5,1819.4,4.53037406]
[1746093618527,1.51395775,1819.5,1819.4,4.53037406]
[1746093618727,1.51395714,1819.5,1819.4,4.53037406]
[1746093618938,1.5139623,1819.5,1819.4,4.53037406]
[1746093619121,1.5139572,1819.5,1819.4,4.53037406]
[1746093619421,0.41487482,1819.5,1819.4,5.62946406]
[1746093619623,1.09903,1819.5,1819.4,4.53037406]
[1746093619826,1.51392113,1819.5,1819.4,4.53037406]
[1746093620016,4.33332376,1819.5,1819.4,4.53037406]
[1746093620216,3.91843,1819.5,1819.4,0.74237406]
[1746093620420,4.3332236,1819.5,1819.4,1.84146406]
[1746093620621,3.91843,1819.5,1819.4,1.84146406]
[1746093621032,2.65500507,1819.5,1819.4,0.74237406]
[1746093621331,1.51380507,1819.5,1819.4,4.53037406]
[1746093621533,1.5137432,1819.5,1819.4,4.53037406]
[1746093621718,1.5137432,1819.5,1819.4,5.62946406]
[1746093621918,1.51366789,1819.5,1819.4,4.53037406]
[1746093622119,1.09918,1819.3,1819.1,3.2078]
[1746093622328,2.77175265,1819.2,1819.1,4.30707]
[1746093622530,2.7717542,1819.2,1819.1,4.30707]
[1746093622723,2.77176304,1819.2,1819.1,5.04944406]
[1746093622929,2.77176005,1819.2,1819.1,5.04944406]
[1746093623133,2.77175955,1819.2,1819.1,5.04944406]
[1746093623329,1.2579,1819.2,1819.1,5.04944406]
[1746093623928,4.9129,1819.4,1819.1,3.95017406]
[1746093624131,1.2126,1819.3,1819.2,1.0992]
[1746093624339,3.2078,1819.4,1819.3,1.84152406]
[1746093624633,1.09909,1819.4,1819.3,1.84152406]
[1746093624836,2.72634385,1819.4,1819.3,1.84152406]
[1746093625226,2.72635417,1819.4,1819.3,5.62952406]
[1746093625427,2.72641501,1819.4,1819.3,5.62952406]
[1746093625638,2.72641544,1819.4,1819.3,4.53037406]
[1746093625831,2.72641544,1819.4,1819.3,3.788]
[1746093625832,4.3663584,1819.4,1819.3,3.788]
[1746093626136,1.09921,1819.2,1819.1,3.2078]
[1746093626632,1.51411002,1819.2,1819.1,3.2078]
[1746093626823,2.66230856,1819.2,1819.1,3.2078]
[1746093627135,1.09927,1819.1,1819.0,3.788]
[1746093627334,4.01367,1819.1,1819.0,3.788]
[1746093627538,4.42877511,1819.1,1819.0,3.788]
[1746093627736,4.01367,1819.1,1819.0,3.788]
[1746093627937,4.42885694,1819.1,1819.0,3.788]
[1746093628133,4.42886045,1819.1,1819.0,3.788]
[1746093628332,4.42886068,1819.1,1819.0,3.788]
[1746093628541,4.42904882,1819.1,1819.0,3.788]
[1746093628735,4.42905855,1819.1,1819.0,3.788]
[1746093629138,9.42908531,1819.1,1819.0,2.32288943]
[1746093629333,9.42908531,1819.1,1818.4,3.2078]
[1746093629334,1.09964,1818.5,1818.4,3.2078]
[1746093629634,0.41567165,1818.5,1818.4,44.0078]
[1746093629835,0.41567165,1818.5,1818.4,47.59077406]
[1746093630235,1.51530367,1818.5,1818.4,51.37877406]
[1746093630636,1.09963,1818.6,1818.5,1.09964]
[1746093630833,1.5155298,1818.6,1818.5,2.84054]
[1746093631029,0.41589136,1818.6,1818.5,3.58291406]
[1746093631232,5.9559,1818.8,1818.6,1.09956]
[1746093631433,5.46436,1818.8,1818.7,0.74237406]
[1746093631741,5.88030648,1818.8,1818.7,0.74237406]
[1746093631940,5.88030337,1818.8,1818.7,0.74237406]
[1746093632141,5.88032096,1818.8,1818.7,6.27127406]
[1746093632344,6.70666,1818.8,1818.7,6.27127406]
[1746093632538,7.12280732,1818.8,1818.7,6.27127406]
[1746093632734,3.91500791,1818.8,1818.7,6.27127406]
[1746093633040,3.49886,1818.8,1818.7,7.37079406]
[1746093634247,3.91525576,1818.8,1818.7,7.37079406]
[1746093634439,3.91536375,1818.8,1818.7,7.37079406]
[1746093634738,3.91536367,1818.8,1818.7,7.37079406]
[1746093634939,0.41650362,1818.8,1818.7,7.37079406]
[1746093635750,1.09943,1818.9,1818.8,1.09946]
[1746093635939,1.51589285,1818.9,1818.8,2.49377406]
[1746093636139,1.09943,1818.9,1818.8,7.38123406]
[1746093636746,1.51586373,1818.9,1818.8,7.38123406]
[1746093637146,4.4501,1819.1,1818.9,1.09935]
[1746093637345,5.54937,1819.1,1819.0,2.49377406]
[1746093637550,5.96572257,1819.1,1819.0,2.49377406]
[1746093637737,5.96572296,1819.1,1819.0,2.49377406]
[1746093637940,5.54937,1819.1,1819.0,2.49377406]
[1746093638138,5.54937,1819.1,1819.0,6.28177406]
[1746093638948,5.96567591,1819.1,1819.0,6.28177406]
[1746093639150,7.5740274,1819.1,1819.0,5.5394]
[1746093639343,7.57402673,1819.1,1819.0,5.5394]
[1746093639535,7.574029,1819.1,1819.0,3.788]
[1746093639742,7.15767,1819.1,1819.0,3.788]
[1746093639951,12.25458951,1819.1,1819.0,3.788]
[1746093640146,12.67097413,1819.1,1819.0,3.788]
[1746093640350,12.25458951,1819.1,1819.0,3.788]
[1746093640540,12.67092529,1819.1,1819.0,3.788]
[1746093640745,12.67092502,1819.1,1819.0,3.788]
[1746093641042,12.67092476,1819.1,1819.0,3.788]
[1746093641243,12.67092516,1819.1,1819.0,3.788]
[1746093641444,7.7678547,1819.1,1819.0,3.788]
[1746093641653,7.6709291,1819.1,1819.0,3.788]
[1746093641854,7.67085375,1819.1,1819.0,3.788]
[1746093642052,7.7677744,1819.1,1819.0,3.788]
[1746093642251,7.67085375,1819.1,1819.0,3.788]
[1746093642652,7.6707105,1819.1,1819.0,3.788]
[1746093642856,7.67070951,1819.1,1819.0,3.788]
[1746093643154,7.67071116,1819.1,1819.0,3.788]
[1746093643354,7.6707089,1819.1,1819.0,3.788]